[Event "FTX Crypto Cup MCCT 2022"]
[Site "Miami"]
[Date "2022.08.11"]
[Round "6.1"]
[White "Giri, Anish"]
[Black "Le, Quang Liem"]
[Result "0-1"]
[ECO "C54"]
[WhiteElo "2760"]
[BlackElo "2722"]
[Annotator "TA"]
[PlyCount "92"]
[EventDate "2022.08.10"]
[EventType "tourn"]
[EventCountry "USA"]
[SourceTitle "playchess.com"]
[Source "ChessBase"]
[SourceQuality "1"]
[TimeControl "900+10"]

{[%evp 12,92,13,10,12,0,13,0,11,12,14,12,18,14,0,8,31,29,14,12,31,24,24,19,28,21,34,48,52,8,21,7,23,-14,-8,-16,0,-28,-28,-160,371,0,0,0,1069,-325,7,-70,-50,-805,-800,-1120,-1014,-1592,-1551,-1446,-1456,-1456,-1406,-1605,-1533,-1475,-1405,-1348,-1285,-1268,-1242,-1466,-1438,-2958,-2824,-2395,-2220,-1748,-1614,-2554,-2485,-2615,-2575,-3318,-2995,-2408,-1847]} 1. e4 {[%emt 0:00:00]} e5 {[%emt 0:00:00]} 2. Nf3 {[%emt 0:00:01]} Nc6 {[%emt 0:00:04]} 3. Bc4 {[%emt 0:00:02]} Nf6 {[%emt 0:00:01]} 4. d3 {[%emt 0:00:01]} Bc5 {[%emt 0:00:02]} 5. O-O {[%emt 0:00:00]} d6 {[%emt 0:00:05]} 6. c3 {[%emt 0:00:02]} O-O {[%emt 0:00:00]} 7. Nbd2 {[%emt 0:00:01]} a5 {[%emt 0:00:38] C54: Giuoco Piano: 4 c3 Nf6, main lines with 5 d4 and 5 d3.} 8. h3 {[%emt 0:00:03]} Be6 {[%emt 0:00:18]} 9. Bb5 {[%emt 0:00:08]} Ba7 $1 {[%emt 0:01:00][%mdl 4] The position is equal. is recently more successful than 9...h6.} 10. Re1 {[%emt 0:00:14]} Ne7 {[%emt 0:00:29][%cal Bc6e7,Be7g6,Bg6f4][%mdl 32]} 11. d4 {[%emt 0:00:01]} Ng6 {[%emt 0:00:04]} 12. Ba4 {[%emt 0:00:13] [#]} exd4 $5 $146 {[%emt 0:03:24][%mdl 8] New and interesting.} ({Predecessor:} 12... Nh5 13. Nf1 Nhf4 14. Ng3 c6 15. Bc2 Qd7 16. Nf5 f6 17. Be3 Kh8 18. dxe5 fxe5 {1-0 (34) Dominguez Perez,L (2752)-So,W (2772) Berlin 2022}) 13. cxd4 {[%emt 0:04:04]} d5 {[%emt 0:00:04]} 14. e5 {[%emt 0:00:03]} Nh5 {[%emt 0:00:35]} 15. Nf1 {[%emt 0:00:18]} Nhf4 {[%emt 0:00:57]} 16. Bxf4 {[%emt 0:00:21]} Nxf4 {[%emt 0:00:00]} 17. Qd2 {[%emt 0:00:08][%csl LRa5,LRf4]} Ng6 {[%emt 0:00:04]} 18. Bc2 {[%emt 0:05:22]} c5 {[%emt 0:00:12]} 19. Rad1 {[%emt 0:00:39]} Rc8 {[%emt 0:00:20]} 20. Ng3 {[%emt 0:01:08]} cxd4 {[%emt 0:03:04]} 21. Bd3 {[%emt 0:03:08]} Re8 {[%emt 0:01:03]} 22. Ng5 {[%emt 0:00:23]} Bd7 {[%emt 0:01:00]} 23. f4 {[%emt 0:00:08]} f6 {[%emt 0:00:43]} 24. e6 {[%emt 0:01:03]} Ba4 {[%emt 0:00:31]} 25. Nxh7 {[%emt 0:00:54] [#]} (25. Nf7 $1 $11 Qc7 26. b3 Nxf4 27. Nf5 (27. bxa4 Rxe6 28. Rxe6 Nxe6 $11)) 25... Bxd1 $2 {[%emt 0:00:53]} (25... Kxh7 26. b3 f5 27. bxa4 $18) (25... Rc2 $1 $17 {[%cal Rc2d2][%mdl 512] keeps the pressure on.} 26. Bxc2 (26. Nxf6+ $2 Qxf6 27. Qxa5 Qxf4 $19) 26... d3+ 27. Kh1 dxc2) 26. Bxg6 $2 {[%emt 0:00:13]} (26. Qxd1 $18 Nxf4 27. Qg4) 26... Bc2 $11 {[%emt 0:00:04]} 27. f5 {[%emt 0:00:00] Strongly threatening Kh1.} Qd6 $2 {[%emt 0:00:14][%mdl 8192] [#]} (27... Qe7 $11 28. Nh5 (28. Bxe8 $2 d3+ 29. Kh1 Rxe8 $19) 28... d3+ 29. Kh1 Bd4) 28. Nh5 $4 {[%emt 0:00:12][%mdl 8192]} (28. Nxf6+ $1 $18 {[%mdl 512] is the narrow road to win.} gxf6 29. Qh6 $1) 28... Qb4 $2 {[%emt 0:00:39]} (28... d3+ $19 29. Kh1 Qb4 30. N7xf6+ Kh8 31. Qxb4 axb4 32. Nxe8 d2) 29. N5xf6+ {[%emt 0:00:41]} (29. N7xf6+ $1 $11 Kh8 30. Qxb4 d3+ 31. Kh2 axb4 32. Nxe8) 29... Kh8 $1 $15 {[%emt 0:01:21] Really sharp!} 30. Ng5 $2 {[%emt 0:00:01][%mdl 8192] White does not recover from this.} gxf6 $19 {[%emt 0:00:06] Black is clearly winning.} (30... Qxd2 $2 31. Nf7#) ({Don't do} 30... d3+ 31. Kf1 Rc7 32. Nf7+ (32. Qxb4 axb4 33. Nf7+ Rxf7 $18) 32... Rxf7 33. Qg5 $18 (33. exf7 $2 {perishes.} Rxe1+ 34. Kxe1 Qc5 $19) (33. Qxb4 axb4 34. exf7 Rf8 $18)) 31. Nf7+ {[%emt 0:00:16]} Kg8 {[%emt 0:00:01]} 32. Qf2 {[%emt 0:00:30] [#]} d3 $1 {[%emt 0:00:07]} 33. Qxa7 {[%emt 0:00:02]} Qxe1+ {[%emt 0:00:02]} 34. Kh2 {[%emt 0:00:00]} Re7 {[%emt 0:00:44]} 35. Qd4 {[%emt 0:00:26] [#]} Kg7 $1 {[%emt 0:00:04] ...d2 is the strong threat.} 36. Bh5 {[%emt 0:00:06] [#]} Rxf7 $1 {[%emt 0:00:27]} 37. Qg4+ {[%emt 0:00:01]} Kf8 {[%emt 0:00:01]} 38. exf7 {[%emt 0:00:10]} Qe5+ {[%emt 0:00:05]} 39. Kh1 {[%emt 0:00:05]} Ke7 {[%emt 0:00:01][%cal Oc2b3]} 40. f8=Q+ {[%emt 0:00:09]} Kxf8 {[%emt 0:00:10]} 41. Qg6 {[%emt 0:00:01]} Rc7 {[%emt 0:00:17] ( -> ...Rg7)} 42. Qh6+ {[%emt 0:00:14]} Ke7 {[%emt 0:00:09][%cal Bf8e7,Be7d6,Bd6c6][%mdl 32]} 43. Qg7+ {[%emt 0:00:01]} Kd6 {[%emt 0:00:01]} 44. Qf8+ {[%emt 0:00:00]} Kc6 {[%emt 0:00:08] aiming for ...d2.} 45. b4 {[%emt 0:00:09]} Qe7 {[%emt 0:00:13]} 46. Qa8 {[%emt 0:00:18]} Qxb4 {[%emt 0:00:11] Weighted Error Value: White=0.99/Black=0.36} 0-1

[Event "FTX Crypto Cup MCCT 2022"]
[Site "Miami"]
[Date "2022.08.11"]
[Round "6.1"]
[White "Niemann, Hans Moke"]
[Black "Aronian, Levon"]
[Result "1-0"]
[ECO "D78"]
[WhiteElo "2688"]
[BlackElo "2775"]
[Annotator "TA"]
[PlyCount "81"]
[EventDate "2022.08.10"]
[EventType "tourn"]
[EventCountry "USA"]
[SourceTitle "playchess.com"]
[Source "ChessBase"]
[SourceQuality "1"]
[TimeControl "900+10"]

{[%evp 16,81,25,0,0,0,0,0,0,-8,-6,-16,9,-25,0,0,0,-14,33,30,47,48,55,56,47,49,49,57,47,53,64,52,42,5,62,69,69,69,69,69,64,75,66,70,84,78,77,56,104,105,129,119,121,117,165,153,191,166,302,322,648,757,1012,1011,988,968,950,904]} 1. d4 {[%emt 0:00:00] Sumets,A} d5 {[%emt 0:00:00]} 2. Nf3 {[%emt 0:00:14]} Nf6 {[%emt 0:00:03]} 3. g3 {[%emt 0:00:06]} g6 {[%emt 0:00:13]} 4. Bg2 {[%emt 0:00:09]} Bg7 {[%emt 0:00:02]} 5. c4 {[%emt 0:00:35]} c6 {[%emt 0:00:01]} 6. b3 {[%emt 0:00:04][%cal Bb2b3,Bb3c4,Bc4c5][%mdl 32]} O-O {[%emt 0:00:05]} 7. Bb2 {[%emt 0:00:04]} Bf5 {[%emt 0:00:19]} 8. O-O {[%emt 0:00:14]} Nbd7 {[%emt 0:00:02]} 9. Nc3 {[%emt 0:00:04] Recently 9.e3 got a lot of attention.} dxc4 {[%emt 0:00:35] D78: Fianchetto Grünfeld: 6 0-0 c6.} 10. bxc4 {[%emt 0:00:05]} Nb6 {[%emt 0:00:02]} 11. c5 {[%emt 0:05:13]} Nc4 {[%emt 0:00:02] The position is equal.} 12. Bc1 {[%emt 0:00:58] [#]} b6 $146 {[%emt 0:02:18]} ({Predecessor:} 12... Nd5 13. Qb3 Na5 14. Qa3 Nc4 15. Qb3 Na5 16. Qa3 Nc4 {½-½ (16) Carlsen,M (2870)-Anand,V (2775) Chennai 2013 CBM 158 [Sumets,A]}) 13. Qb3 {[%emt 0:02:52]} Na5 {[%emt 0:00:03]} 14. Qa3 {[%emt 0:00:17]} Nd7 {[%emt 0:04:45]} 15. Bf4 {[%emt 0:01:17]} bxc5 {[%emt 0:01:05]} 16. dxc5 {[%emt 0:00:04]} Nc4 {[%emt 0:00:01]} (16... e5 $11 17. Bg5 f6) 17. Qb4 $14 {[%emt 0:00:13]} Be6 {[%emt 0:00:37]} 18. Ng5 $1 {[%emt 0:03:02]} a5 {[%emt 0:00:04]} 19. Qb3 {[%emt 0:00:11]} Nxc5 {[%emt 0:00:20][%cal Bd7c5,Bc5b3,Bb3a1,Ba1c2][%mdl 32]} 20. Nxe6 {[%emt 0:00:07][%cal Bg5e6,Be6d8,Bd8c6,Bc6e7][%mdl 32]} Nxb3 {[%emt 0:00:33]} 21. Nxd8 {[%emt 0:00:02]} Nxa1 {[%emt 0:00:00] [#]} 22. Nxc6 {[%emt 0:00:01]} e5 {[%emt 0:03:09]} 23. Bg5 {[%emt 0:00:15] And now Ne7+ would win.} (23. Bxe5 $5 Bxe5 24. Nxe5 Nxe5 25. Bxa8 $14) 23... Nc2 {[%emt 0:00:19]} 24. Bd5 {[%emt 0:00:28] This bishop pair is nice.} Nb6 {[%emt 0:01:05]} (24... h6 $11) 25. Ne7+ {[%emt 0:00:08]} Kh8 {[%emt 0:00:01]} 26. Bxa8 {[%emt 0:00:00]} Rxa8 {[%emt 0:00:00]} 27. Rb1 {[%emt 0:00:12]} Nc4 {[%emt 0:00:15]} 28. Ned5 {[%emt 0:00:10]} h6 {[%emt 0:00:30]} 29. Be7 {[%emt 0:00:03]} Nd4 {[%emt 0:00:18]} 30. Rb7 $1 {[%emt 0:00:18]} Rc8 {[%emt 0:00:18]} 31. g4 {[%emt 0:00:58]} e4 {[%emt 0:02:06]} (31... Nc6 $14 {might be stronger.}) 32. e3 $16 {[%emt 0:00:36]} ({Much less strong is} 32. Nxe4 Nxe2+ 33. Kg2 Be5 $14) 32... Nf3+ {[%emt 0:00:21]} 33. Kg2 {[%emt 0:00:07]} Ncd2 {[%emt 0:00:07] [#]} 34. Nf6 $1 {[%emt 0:01:01]} g5 {[%emt 0:00:42]} (34... Ne5 $16 {might work better.}) 35. Ncxe4 $18 {[%emt 0:00:17]} Nh4+ {[%emt 0:00:10]} 36. Kh3 {[%emt 0:00:09]} Ndf3 {[%emt 0:00:04] [#]} (36... Nxe4 $142 37. Nxe4 Rc2) 37. Kg3 $1 {[%emt 0:00:19] Strongly threatening Nd6.} Ng1 $2 {[%emt 0:00:16]} (37... Re8 38. Bc5 (38. Nxe8 $2 {is a self mate.} Be5+ 39. Kh3 Ng1#) 38... Nd2) 38. f4 {[%emt 0:00:07] Active counter play! White is clearly winning.} Bxf6 {[%emt 0:00:26]} 39. Bxf6+ {[%emt 0:00:11][%mdl 64] Discovered Attack} Kg8 {[%emt 0:00:01]} 40. fxg5 {[%emt 0:00:03]} hxg5 {[%emt 0:00:30]} 41. Nxg5 {[%emt 0:00:13] Weighted Error Value: White=0.05 (flawless) /Black=0.35} 1-0

[Event "FTX Crypto Cup MCCT 2022"]
[Site "Miami"]
[Date "2022.08.11"]
[Round "6.1"]
[White "Praggnanandhaa R"]
[Black "Duda, Jan-Krzysztof"]
[Result "0-1"]
[ECO "D02"]
[WhiteElo "2648"]
[BlackElo "2750"]
[Annotator "TA"]
[PlyCount "94"]
[EventDate "2022.08.10"]
[EventType "tourn"]
[EventCountry "USA"]
[SourceTitle "playchess.com"]
[Source "ChessBase"]
[SourceQuality "1"]
[TimeControl "900+10"]

{[%evp 11,94,20,29,23,26,10,27,13,31,24,29,21,22,23,22,27,9,9,22,0,34,0,0,-41,-22,-66,-50,-65,-66,-59,-60,-60,-60,-58,-57,-57,-61,-54,0,-98,-93,-99,-85,-139,-137,-154,-153,-155,-158,-159,-131,-113,-111,-156,-152,-157,-158,-151,-121,-120,-107,-162,-137,-156,-144,-219,-214,-288,-281,-277,-289,-368,-364,-411,-400,-425,-421,-497,-467,-627,-624,-649,-639,-582,-493]} 1. Nf3 {[%emt 0:00:00]} d5 {[%emt 0:00:00]} 2. g3 {[%emt 0:00:03]} Nc6 {[%emt 0:00:08]} 3. d4 {[%emt 0:00:02]} Bf5 {[%emt 0:00:00]} 4. Bg2 {[%emt 0:00:01]} e6 {[%emt 0:00:01]} 5. O-O {[%emt 0:00:06]} Nb4 {[%emt 0:00:17]} 6. Na3 {[%emt 0:00:04]} Be7 {[%emt 0:00:02]} 7. c3 {[%emt 0:00:16] D02: 1 d4 d5 2 Nf3 sidelines, including 2...Nf6 3 g3 and 2...Nf6 3 Bf4.} Nc6 {[%emt 0:00:04]} 8. Qa4 {[%emt 0:00:11]} Qd7 {[%emt 0:01:38]} 9. b4 {[%emt 0:00:42] [#] White has an edge.} Ne5 $146 {[%emt 0:01:28]} ({Predecessor:} 9... a6 10. b5 Na7 11. Ne5 axb5 12. Qb3 Qc8 13. Nxb5 Nxb5 14. Qxb5+ c6 15. Qb3 Nf6 {0-1 (37) Muse,M (2391)-Sulava,N (2452) Mali Losinj 2017}) 10. Qxd7+ {[%emt 0:00:22]} Nxd7 {[%emt 0:00:00]} 11. Nb5 {[%emt 0:00:57]} Kd8 {[%emt 0:00:03]} 12. Ne5 {[%emt 0:02:03]} Bg6 {[%emt 0:02:02]} 13. Nxg6 {[%emt 0:01:49]} hxg6 {[%emt 0:00:00]} 14. e4 {[%emt 0:00:44]} c6 {[%emt 0:02:22]} 15. Na3 {[%emt 0:00:09][%cal Bb5a3,Ba3c4,Bc4d6][%mdl 32]} (15. exd5 $5 cxb5 16. dxe6 fxe6 17. a4 $11) 15... dxe4 {[%emt 0:00:05]} 16. Bxe4 {[%emt 0:00:06]} Ngf6 {[%emt 0:00:00][%cal Bg8f6,Bf6d5,Bd5b4][%mdl 32]} 17. Bg2 {[%emt 0:02:18]} Nd5 $1 {[%emt 0:00:03]} 18. Bd2 {[%emt 0:01:14]} a5 {[%emt 0:00:13][%cal Ra5b4]} 19. Nc4 {[%emt 0:00:08]} axb4 {[%emt 0:00:41]} 20. cxb4 {[%emt 0:00:03]} Bxb4 {[%emt 0:02:38]} 21. Bxb4 {[%emt 0:00:15]} Nxb4 {[%emt 0:00:00] Pair of Knights!} 22. Rab1 {[%emt 0:01:57]} Ra4 {[%emt 0:00:02] White must now prevent ...Kc7.} 23. Nd6 {[%emt 0:00:51][%csl LRb7,LRf7]} Ke7 {[%emt 0:00:01]} 24. Nxb7 {[%emt 0:00:02][%cal Oa2a3]} Rb8 {[%emt 0:01:59]} ({Black should play} 24... Nxa2 $15 25. Ra1 Rc8) 25. Nc5 {[%emt 0:00:09]} (25. Rxb4 $1 $11 Rxb4 26. Na5) 25... Rxa2 $17 {[%emt 0:00:36]} 26. Rfc1 {[%emt 0:00:45]} Nxc5 {[%emt 0:00:51]} 27. dxc5 {[%emt 0:01:19] [#]} (27. Rxc5 $142 Na6 28. Rcc1) 27... Raa8 $1 {[%emt 0:00:03] Black is more active.} 28. h4 {[%emt 0:00:17]} Nd5 {[%emt 0:00:30]} 29. Rxb8 {[%emt 0:00:10]} Rxb8 {[%emt 0:00:00][%mdl 4096] Endgame KRB-KRN} 30. Ra1 {[%emt 0:00:01]} Kd7 {[%emt 0:01:10]} 31. Bf1 {[%emt 0:01:06]} Rb2 {[%emt 0:00:02]} 32. Ra5 {[%emt 0:00:39]} Rc2 {[%emt 0:00:17]} 33. Bd3 {[%emt 0:00:05]} Rc3 {[%emt 0:00:09]} 34. Be2 {[%emt 0:00:12]} Ke7 {[%emt 0:00:14]} 35. Kg2 {[%emt 0:00:09]} f5 {[%emt 0:00:05]} 36. Ba6 {[%emt 0:00:30]} (36. f4 $17) 36... Nc7 {[%emt 0:00:20]} 37. Bb7 {[%emt 0:00:38]} Kd7 {[%emt 0:00:03]} 38. Kg1 {[%emt 0:00:15]} (38. Ba6 $17) 38... e5 $19 {[%emt 0:00:03][%cal Be6e5,Be5e4][%mdl 32]} 39. Kg2 {[%emt 0:00:06]} e4 {[%emt 0:00:18]} 40. Ba6 {[%emt 0:00:04]} Ne6 {[%emt 0:00:12]} 41. Bf1 {[%emt 0:00:09]} Ke7 {[%emt 0:00:03]} 42. Ra4 {[%emt 0:00:30]} Kf6 {[%emt 0:00:04]} 43. Rb4 {[%emt 0:00:07]} Nxc5 {[%emt 0:00:05] Black is clearly winning.} 44. Rb8 {[%emt 0:00:15]} Rc2 {[%emt 0:00:13]} 45. Kg1 {[%emt 0:00:04]} Nd3 {[%emt 0:00:14]} 46. Rf8+ {[%emt 0:00:04]} Ke7 {[%emt 0:00:02]} 47. Rg8 {[%emt 0:00:13]} Kf7 {[%emt 0:00:03] Weighted Error Value: White=0.25 (precise) /Black=0.07 (flawless)} 0-1

[Event "FTX Crypto Cup MCCT 2022"]
[Site "Miami"]
[Date "2022.08.11"]
[Round "6.2"]
[White "Carlsen, Magnus"]
[Black "Firouzja, Alireza"]
[Result "1-0"]
[ECO "D36"]
[WhiteElo "2864"]
[BlackElo "2793"]
[Annotator "TA"]
[PlyCount "65"]
[EventDate "2022.08.10"]
[EventType "tourn"]
[EventCountry "USA"]
[SourceTitle "playchess.com"]
[Source "ChessBase"]
[SourceQuality "1"]
[TimeControl "900+10"]

{[%evp 20,65,0,0,0,0,14,0,21,26,34,38,35,28,38,37,99,102,177,139,216,188,195,164,176,161,176,113,110,104,247,247,241,233,243,248,543,566,547,547,604,376,369,331,482,322,280,278]} 1. c4 {[%emt 0:00:00]} Nf6 {[%emt 0:00:00]} 2. Nf3 {[%emt 0:00:36]} e6 {[%emt 0:00:02]} 3. Nc3 {[%emt 0:00:06]} d5 {[%emt 0:00:01]} 4. cxd5 {[%emt 0:00:13]} exd5 {[%emt 0:00:02]} 5. d4 {[%emt 0:00:00]} c6 {[%emt 0:00:12]} 6. Qc2 {[%emt 0:01:15]} g6 {[%emt 0:01:25]} 7. Bg5 {[%emt 0:00:02]} Be7 {[%emt 0:00:26]} 8. e3 {[%emt 0:00:04]} Bf5 {[%emt 0:00:09]} 9. Bd3 {[%emt 0:01:37]} Bxd3 {[%emt 0:00:04]} 10. Qxd3 {[%emt 0:00:00]} Nbd7 {[%emt 0:00:26]} 11. Bh6 {[%emt 0:00:01]} Ng4 {[%emt 0:03:16] D36: Queen's Gambit Declined: Exchange Variation: Main line (5 Bg5 c6 6 Qc2).} 12. Bf4 {[%emt 0:00:03]} Nf8 {[%emt 0:01:09] [#]} 13. h4 $146 {[%emt 0:04:33]} ({Predecessor:} 13. h3 Nf6 14. O-O Ne6 15. Be5 O-O {½-½ (15) Saric,S (2408)-Laketic,G (2336) Ruma 2020}) 13... h5 {[%emt 0:01:00] The position is equal.} 14. Ng5 {[%emt 0:00:14]} Qd7 {[%emt 0:02:49]} 15. f3 {[%emt 0:00:13]} Nh6 {[%emt 0:00:39]} 16. O-O-O {[%emt 0:00:09]} f6 {[%emt 0:00:50]} 17. Nh3 {[%emt 0:00:01]} Nf7 {[%emt 0:01:07]} (17... O-O-O $14) 18. e4 $16 {[%emt 0:01:14] Strongly threatening exd5. White is more active.} dxe4 {[%emt 0:00:24]} (18... Nd8 $16) 19. Qxe4 $18 {[%emt 0:00:02] [#] aiming for d5.} (19. Nxe4 $6 O-O-O $14) (19. fxe4 $6 g5 $16) 19... O-O-O {[%emt 0:01:09]} (19... Nd6 $16 {was called for.} 20. Qc2 O-O-O) 20. d5 {[%emt 0:00:02] Black must now prevent dxc6.} c5 {[%emt 0:00:09]} 21. Qc4 {[%emt 0:00:15] Hoping for Nb5.} Bd6 {[%emt 0:01:39]} 22. Ne4 {[%emt 0:01:10]} Kb8 {[%emt 0:00:28]} 23. Rhe1 {[%emt 0:00:23]} (23. Nxc5 $6 Qf5 $16) (23. Nxf6 $18 Qf5 24. Bxd6+ Nxd6 25. Qf4) 23... Bxf4+ $16 {[%emt 0:00:23]} 24. Nxf4 {[%emt 0:00:02] [#] And now Ne6 would win.} Ne5 {[%emt 0:00:08] Black cannot hold the game after this.} (24... Qf5 $16 25. Ng3 (25. Nxc5 Nd6 $11) 25... Ne5) 25. Qc3 $18 {[%emt 0:00:16]} ({Don't go for} 25. Qxc5 $2 Rc8 26. Qxc8+ Qxc8+ $19) 25... Qf5 {[%emt 0:00:01]} 26. g3 {[%emt 0:00:09]} b6 {[%emt 0:00:09]} 27. Nxf6 {[%emt 0:00:20]} Nfd7 {[%emt 0:00:43]} (27... Qxf6 {might work better.} 28. Rxe5 (28. Qxe5+ Qxe5 29. Rxe5 Rh7 $18) 28... Rh7) 28. Nxd7+ {[%emt 0:00:32]} Nxd7 {[%emt 0:00:01]} 29. Re7 {[%emt 0:00:03] Prevents Qf7.} Rhe8 {[%emt 0:00:18]} 30. Rde1 {[%emt 0:00:23][%cal Bd1e1,Be1e7,Be7e5][%mdl 32]} Rxe7 {[%emt 0:00:11]} 31. Rxe7 {[%emt 0:00:01] Threatens to win with Ne6.} Nf6 {[%emt 0:00:15]} (31... Qf6 $142 32. Re6 Qxc3+ 33. bxc3 Nf8) 32. Qe5+ {[%emt 0:00:07]} ({Weaker is} 32. Qa3 Rd7 33. Rxd7 Nxd7 $16) 32... Qxe5 {[%emt 0:00:27]} 33. Rxe5 {[%emt 0:00:00] Weighted Error Value: White=0.23 (precise) /Black=0.50} 1-0

[Event "FTX Crypto Cup MCCT 2022"]
[Site "Miami"]
[Date "2022.08.11"]
[Round "6.2"]
[White "Aronian, Levon"]
[Black "Niemann, Hans Moke"]
[Result "1-0"]
[ECO "D02"]
[WhiteElo "2775"]
[BlackElo "2688"]
[Annotator "TA"]
[PlyCount "55"]
[EventDate "2022.08.10"]
[EventType "tourn"]
[EventCountry "USA"]
[SourceTitle "playchess.com"]
[Source "ChessBase"]
[SourceQuality "1"]
[TimeControl "900+10"]

{[%evp 11,55,6,12,0,12,6,24,0,8,7,1,0,0,0,20,0,5,1,21,19,45,39,52,55,69,59,104,123,90,71,319,305,417,413,395,417,498,440,526,579,2121,2113,2387,1461,3150,2956]} 1. d4 {[%emt 0:00:00]} Nf6 {[%emt 0:00:00]} 2. Nf3 {[%emt 0:00:02]} d5 {[%emt 0:00:09]} 3. Bf4 {[%emt 0:00:02]} g6 {[%emt 0:01:26]} 4. e3 {[%emt 0:00:06]} Bg7 {[%emt 0:00:01]} 5. Nbd2 {[%emt 0:00:04]} O-O {[%emt 0:00:04]} 6. c3 {[%emt 0:00:08][%cal Bc2c3,Bc3b4,Bb4b5][%mdl 32]} b6 {[%emt 0:00:15]} 7. Be2 {[%emt 0:00:11] 7.a4 is setting a new trend. D02: 1 d4 d5 2 Nf3 sidelines, including 2...Nf6 3 g3 and 2...Nf6 3 Bf4.} Bb7 {[%emt 0:00:02]} 8. O-O {[%emt 0:00:05]} c5 {[%emt 0:00:09] [#]} 9. Qb1 $146 {[%emt 0:00:15] White has an edge.} (9. Qb3 $5 {[%cal Rd4c5]}) ({Predecessor:} 9. b4 c4 10. Ne5 Nbd7 11. Bf3 Qc8 12. a4 Nxe5 13. Bxe5 Bh6 14. Qc2 Nd7 15. Bf4 {1-0 (42) Karjakin,S (2752)-Yu,Y (2709) chess24.com INT 2020}) 9... Nc6 {[%emt 0:00:51]} 10. b4 {[%emt 0:00:53]} cxb4 {[%emt 0:00:19]} 11. cxb4 {[%emt 0:00:02]} Nh5 {[%emt 0:00:00]} 12. Bg5 {[%emt 0:00:09]} h6 {[%emt 0:01:07]} 13. Bh4 {[%emt 0:00:02]} g5 {[%emt 0:00:23]} 14. b5 {[%emt 0:00:02]} Na5 {[%emt 0:00:26] [#]} 15. Ne5 $1 {[%emt 0:00:02]} gxh4 {[%emt 0:00:46]} (15... Bxe5 16. dxe5) 16. Bxh5 {[%emt 0:00:02]} Bxe5 {[%emt 0:01:02]} 17. dxe5 {[%emt 0:00:04][%cal Oe5e6] Threatens to win with e6!} e6 {[%emt 0:00:02]} 18. f4 {[%emt 0:00:51][%cal Bf2f4,Bf4f5,Bf5e6][%mdl 32] Prevents Qg5. White is more active.} Rc8 {[%emt 0:01:29]} 19. Nf3 {[%emt 0:00:34][%cal Bd2f3,Bf3d4,Bd4f5][%mdl 32]} Nc4 {[%emt 0:01:44]} 20. f5 {[%emt 0:00:16] [#] Strongly threatening fxe6.} Nxe3 $2 {[%emt 0:01:08] A mistake that costs the game.} (20... Qe7 $16) 21. fxe6 $18 {[%emt 0:00:09]} f5 {[%emt 0:00:26]} 22. Qb4 {[%emt 0:01:04] Hoping for e7.} Rc7 {[%emt 0:01:26] Inhibits e7.} (22... Nxf1 $2 23. e7 Qd7 24. exf8=N Rxf8 25. Rxf1 $18) 23. Rac1 {[%emt 0:01:32] Black must now prevent Rxc7. The board is on fire.} Nc4 {[%emt 0:00:27]} (23... Nxf1 $2 24. Rxc7 Qxc7 25. e7 Qc5+ 26. Qxc5 bxc5 27. Kxf1) 24. Nd4 {[%emt 0:00:38] White is clearly winning.} h3 {[%emt 0:01:49]} 25. g3 {[%emt 0:00:03] Against Qh4} Kh7 {[%emt 0:01:12]} 26. Nxf5 {[%emt 0:00:19] Intending e7 and mate.} d4 {[%emt 0:00:22]} 27. e7 {[%emt 0:00:02]} Qd5 {[%emt 0:00:09]} 28. Bf3 {[%emt 0:00:10] Weighted Error Value: White=0.08 (flawless) /Black=0.39} 1-0